[Event "*** SCC Grand Prix: Titled Tuesday Blitz"]
[Site "Chess.com"]
[Date "2020.06.09"]
[Round "3"]
[White "bait_or_mate"]
[Black "g3god"]
[Result "0-1"]
[WhiteElo "2591"]
[BlackElo "2880"]
[TimeControl "180+1"]
[EndTime "9:29:24 PDT"]
[Termination "g3god won by resignation"]

1. d4 {[%clk 0:03:00.9]} 1... Nf6 {[%clk 0:02:57.8]} 2. c4 {[%clk 0:03:00.6]}
2... e6 {[%clk 0:02:58]} 3. Nf3 {[%clk 0:03:00]} 3... b6 {[%clk 0:02:57.5]} 4.
a3 {[%clk 0:02:59.3]} 4... Bb7 {[%clk 0:02:56.9]} 5. Nc3 {[%clk 0:02:59.3]} 5...
d5 {[%clk 0:02:56.9]} 6. cxd5 {[%clk 0:02:59.4]} 6... Nxd5 {[%clk 0:02:56.8]} 7.
Qc2 {[%clk 0:02:59.6]} 7... Nxc3 {[%clk 0:02:56.5]} 8. bxc3 {[%clk 0:03:00.5]}
8... Nd7 {[%clk 0:02:56.3]} 9. e4 {[%clk 0:03:00.8]} 9... c5 {[%clk 0:02:56.2]}
10. Bd3 {[%clk 0:03:01.3]} 10... cxd4 {[%clk 0:02:54.8]} 11. cxd4 {[%clk
0:02:59.8]} 11... Rc8 {[%clk 0:02:55]} 12. Qb1 {[%clk 0:02:55.5]} 12... Be7
{[%clk 0:02:49.5]} 13. O-O {[%clk 0:02:55.4]} 13... O-O {[%clk 0:02:49.5]} 14.
Be3 {[%clk 0:02:54.8]} 14... Qc7 {[%clk 0:02:46.8]} 15. a4 {[%clk 0:02:47.2]}
15... a5 {[%clk 0:02:41.9]} 16. Rc1 {[%clk 0:02:43.8]} 16... Qb8 {[%clk
0:02:41.6]} 17. Qb5 {[%clk 0:02:34.2]} 17... Rfd8 {[%clk 0:02:35.4]} 18. Rxc8
{[%clk 0:02:31.9]} 18... Qxc8 {[%clk 0:02:34.7]} 19. Rc1 {[%clk 0:02:32.2]}
19... Qa8 {[%clk 0:02:34.5]} 20. Nd2 {[%clk 0:02:31]} 20... Rc8 {[%clk
0:02:30.3]} 21. Nc4 {[%clk 0:01:38.3]} 21... Bc6 {[%clk 0:02:02.9]} 22. Nxb6
{[%clk 0:01:33.1]} 22... Bxb5 {[%clk 0:01:46.8]} 23. Rxc8+ {[%clk 0:01:32.6]}
23... Qxc8 {[%clk 0:01:44.4]} 24. Nxc8 {[%clk 0:01:33.5]} 24... Bxd3 {[%clk
0:01:44.4]} 25. Nxe7+ {[%clk 0:01:33.1]} 25... Kf8 {[%clk 0:01:44.5]} 26. Nc6
{[%clk 0:01:33.4]} 26... Bxe4 {[%clk 0:01:44.2]} 27. Nxa5 {[%clk 0:01:33.3]}
27... Bd5 {[%clk 0:01:44.3]} 28. Kf1 {[%clk 0:01:05.2]} 28... Nb6 {[%clk
0:01:43.3]} 29. f3 {[%clk 0:00:59]} 29... Nxa4 {[%clk 0:01:41.4]} 30. Ke2 {[%clk
0:00:58.9]} 30... Ke8 {[%clk 0:01:40.1]} 31. Kd2 {[%clk 0:00:59.3]} 31... Kd7
{[%clk 0:01:37.7]} 32. Kc2 {[%clk 0:00:58.6]} 32... Kc7 {[%clk 0:01:34.1]} 33.
Nb3 {[%clk 0:00:58.5]} 33... Bxb3+ {[%clk 0:01:33.6]} 34. Kxb3 {[%clk
0:00:59.4]} 34... Nb6 {[%clk 0:01:33.5]} 35. Kc2 {[%clk 0:00:58.1]} 35... Nd5
{[%clk 0:01:31]} 36. Bd2 {[%clk 0:00:57.4]} 36... Kc6 {[%clk 0:01:30.4]} 37. Kd3
{[%clk 0:00:57.8]} 37... Kb5 {[%clk 0:01:29.6]} 38. g3 {[%clk 0:00:55.2]} 38...
h5 {[%clk 0:01:29.3]} 39. Be1 {[%clk 0:00:54.4]} 39... g5 {[%clk 0:01:23.1]} 40.
Bd2 {[%clk 0:00:53.8]} 40... g4 {[%clk 0:01:23.2]} 41. fxg4 {[%clk 0:00:47.7]}
41... hxg4 {[%clk 0:01:23.1]} 42. Be1 {[%clk 0:00:46.3]} 42... Ka4 {[%clk
0:01:22.3]} 43. Bd2 {[%clk 0:00:38.7]} 43... Kb3 {[%clk 0:01:22.3]} 44. Bh6
{[%clk 0:00:38.5]} 44... Kb2 {[%clk 0:01:13.7]} 45. Bg5 {[%clk 0:00:38.7]} 45...
Kb3 {[%clk 0:01:09.2]} 46. Bh6 {[%clk 0:00:39.1]} 46... f5 {[%clk 0:01:08.9]}
47. Bg5 {[%clk 0:00:39.4]} 47... Nb4+ {[%clk 0:01:08.7]} 48. Ke3 {[%clk
0:00:39.1]} 48... Kc4 {[%clk 0:01:07.7]} 49. Kf2 {[%clk 0:00:30.3]} 49... Kxd4
{[%clk 0:01:06.6]} 50. Kg2 {[%clk 0:00:30.9]} 50... Ke4 {[%clk 0:01:04.8]} 51.
h3 {[%clk 0:00:31]} 51... gxh3+ {[%clk 0:01:04.6]} 52. Kxh3 {[%clk 0:00:31.9]}
52... Kf3 {[%clk 0:01:04.6]} 53. Bf4 {[%clk 0:00:29.9]} 53... Nd5 {[%clk
0:01:04.2]} 54. Be5 {[%clk 0:00:30]} 54... Ne3 {[%clk 0:01:04.2]} 55. Kh4 {[%clk
0:00:29.9]} 55... Nc4 {[%clk 0:00:56.1]} 56. Bb8 {[%clk 0:00:29.1]} 56... e5
{[%clk 0:00:50.2]} 57. Kg5 {[%clk 0:00:28.2]} 57... e4 {[%clk 0:00:50.5]} 58.
Kxf5 {[%clk 0:00:14.1]} 58... e3 {[%clk 0:00:50.6]} 59. g4 {[%clk 0:00:05.1]}
59... e2 {[%clk 0:00:50.6]} 60. Bg3 {[%clk 0:00:05.6]} 60... Kxg3 {[%clk
0:00:50.8]} 0-1

[Event "*** SCC Grand Prix: Titled Tuesday Blitz"]
[Site "Chess.com"]
[Date "2020.06.09"]
[Round "3"]
[White "BocharovD"]
[Black "Shuvalov"]
[Result "1-0"]
[WhiteElo "2737"]
[BlackElo "2449"]
[TimeControl "180+1"]
[EndTime "9:29:24 PDT"]
[Termination "BocharovD won on time"]

1. c4 {[%clk 0:03:00.9]} 1... c6 {[%clk 0:01:22.9]} 2. Nf3 {[%clk 0:02:24.9]}
2... d5 {[%clk 0:01:23.8]} 3. e3 {[%clk 0:02:24.9]} 3... Nf6 {[%clk 0:01:24.4]}
4. Nc3 {[%clk 0:02:24.9]} 4... a6 {[%clk 0:01:24.9]} 5. Qc2 {[%clk 0:02:18]}
5... Bg4 {[%clk 0:01:23.2]} 6. Ne5 {[%clk 0:02:15.2]} 6... Bh5 {[%clk
0:01:23.5]} 7. Qb3 {[%clk 0:02:04]} 7... Ra7 {[%clk 0:01:22.8]} 8. d4 {[%clk
0:01:57.2]} 8... e6 {[%clk 0:01:22]} 9. Bd2 {[%clk 0:01:54.5]} 9... Nbd7 {[%clk
0:01:21.9]} 10. Nd3 {[%clk 0:01:50.9]} 10... Bd6 {[%clk 0:01:15.8]} 11. c5
{[%clk 0:01:45.2]} 11... Bc7 {[%clk 0:01:14.2]} 12. Nf4 {[%clk 0:01:39.1]} 12...
Bg6 {[%clk 0:01:12.3]} 13. Be2 {[%clk 0:01:37.2]} 13... O-O {[%clk 0:01:10.2]}
14. Nxg6 {[%clk 0:01:32.6]} 14... hxg6 {[%clk 0:01:11.1]} 15. O-O {[%clk
0:01:31.2]} 15... e5 {[%clk 0:01:08.9]} 16. Rfe1 {[%clk 0:01:31]} 16... Re8
{[%clk 0:01:08.1]} 17. Rad1 {[%clk 0:01:25.2]} 17... Nf8 {[%clk 0:01:06.4]} 18.
dxe5 {[%clk 0:01:14.1]} 18... Bxe5 {[%clk 0:01:06.4]} 19. Bf3 {[%clk 0:01:09.2]}
19... Ne6 {[%clk 0:01:02.6]} 20. Na4 {[%clk 0:01:02.2]} 20... Qc7 {[%clk
0:00:55]} 21. g3 {[%clk 0:01:01]} 21... g5 {[%clk 0:00:53.4]} 22. h3 {[%clk
0:00:59]} 22... Bxg3 {[%clk 0:00:33.3]} 23. fxg3 {[%clk 0:00:59.9]} 23... Qxg3+
{[%clk 0:00:33.7]} 24. Bg2 {[%clk 0:01:00.5]} 24... Ne4 {[%clk 0:00:25.2]} 25.
Rf1 {[%clk 0:01:00.4]} 25... g4 {[%clk 0:00:23.5]} 26. Be1 {[%clk 0:00:55.2]}
26... Qe5 {[%clk 0:00:20.7]} 27. hxg4 {[%clk 0:00:54.3]} 27... N6g5 {[%clk
0:00:20.8]} 28. Rf5 {[%clk 0:00:48.3]} 28... Qc7 {[%clk 0:00:20.1]} 29. Qb6
{[%clk 0:00:46.1]} 29... Qb8 {[%clk 0:00:19.5]} 30. Bh4 {[%clk 0:00:45.7]} 30...
Ne6 {[%clk 0:00:18.2]} 31. Rdf1 {[%clk 0:00:43.7]} 31... Rf8 {[%clk 0:00:15.3]}
32. Bxe4 {[%clk 0:00:41.7]} 32... dxe4 {[%clk 0:00:15.1]} 33. Kg2 {[%clk
0:00:41.2]} 33... f6 {[%clk 0:00:14.6]} 34. Bg3 {[%clk 0:00:41.1]} 34... Qa8
{[%clk 0:00:13.3]} 35. Nc3 {[%clk 0:00:38.9]} 35... Re8 {[%clk 0:00:12.6]} 36.
Nxe4 {[%clk 0:00:38.3]} 36... Kh7 {[%clk 0:00:11.4]} 37. g5 {[%clk 0:00:35.4]}
37... fxg5 {[%clk 0:00:10.5]} 38. Nxg5+ {[%clk 0:00:33.5]} 38... Nxg5 {[%clk
0:00:10.7]} 39. Rxg5 {[%clk 0:00:34.4]} 39... Re7 {[%clk 0:00:10]} 40. Rh1+
{[%clk 0:00:31.9]} 40... Kg8 {[%clk 0:00:09.7]} 41. Qb3+ {[%clk 0:00:32.2]}
41... Rf7 {[%clk 0:00:09.7]} 42. Rf5 {[%clk 0:00:32.1]} 42... b5 {[%clk
0:00:09.8]} 43. cxb6 {[%clk 0:00:31.8]} 43... Rb7 {[%clk 0:00:09.7]} 44. Rxf7
{[%clk 0:00:31.5]} 44... Rxf7 {[%clk 0:00:09]} 45. Rf1 {[%clk 0:00:31.7]} 45...
c5+ {[%clk 0:00:09.3]} 46. Kg1 {[%clk 0:00:31.6]} 46... c4 {[%clk 0:00:06.7]}
47. Qxc4 {[%clk 0:00:31.4]} 47... Qb7 {[%clk 0:00:06.6]} 48. Qxf7+ {[%clk
0:00:31.1]} 48... Qxf7 {[%clk 0:00:07.2]} 49. Rxf7 {[%clk 0:00:31.6]} 49... Kxf7
{[%clk 0:00:08.1]} 50. b7 {[%clk 0:00:32.2]} 1-0

[Event "*** SCC Grand Prix: Titled Tuesday Blitz"]
[Site "Chess.com"]
[Date "2020.06.09"]
[Round "3"]
[White "Oleksandr_Bortnyk"]
[Black "NicoChasin"]
[Result "1-0"]
[WhiteElo "2950"]
[BlackElo "2472"]
[TimeControl "180+1"]
[EndTime "9:29:26 PDT"]
[Termination "Oleksandr_Bortnyk won by checkmate"]

1. d4 {[%clk 0:03:00.9]} 1... Nf6 {[%clk 0:01:45.6]} 2. Bf4 {[%clk 0:02:58.1]}
2... d6 {[%clk 0:01:45.3]} 3. e3 {[%clk 0:02:55.1]} 3... Nbd7 {[%clk 0:01:44.7]}
4. Nf3 {[%clk 0:02:55.6]} 4... g6 {[%clk 0:01:44.7]} 5. h3 {[%clk 0:02:55.7]}
5... Bg7 {[%clk 0:01:44.4]} 6. Be2 {[%clk 0:02:56.3]} 6... O-O {[%clk
0:01:36.2]} 7. O-O {[%clk 0:02:56.8]} 7... c6 {[%clk 0:01:29.3]} 8. c4 {[%clk
0:02:53.4]} 8... Qc7 {[%clk 0:01:28.5]} 9. c5 {[%clk 0:02:53.2]} 9... Nd5 {[%clk
0:01:25.8]} 10. Bh2 {[%clk 0:02:52.7]} 10... Rd8 {[%clk 0:01:04.8]} 11. Nbd2
{[%clk 0:02:49.5]} 11... Bf8 {[%clk 0:00:57.2]} 12. e4 {[%clk 0:02:33.8]} 12...
N5f6 {[%clk 0:00:54.5]} 13. e5 {[%clk 0:02:34.1]} 13... Nd5 {[%clk 0:00:50]} 14.
exd6 {[%clk 0:02:33.5]} 14... exd6 {[%clk 0:00:49.8]} 15. Ne4 {[%clk 0:02:29.4]}
15... N7f6 {[%clk 0:00:47]} 16. Nxd6 {[%clk 0:02:16.9]} 16... Bxd6 {[%clk
0:00:45.4]} 17. Bxd6 {[%clk 0:02:13.3]} 17... Rxd6 {[%clk 0:00:40.1]} 18. cxd6
{[%clk 0:02:14.2]} 18... Qxd6 {[%clk 0:00:40.7]} 19. Ne5 {[%clk 0:02:14.8]}
19... Bf5 {[%clk 0:00:39.9]} 20. Bf3 {[%clk 0:02:10.5]} 20... Qb4 {[%clk
0:00:38.6]} 21. Qb3 {[%clk 0:02:04.6]} 21... Qxb3 {[%clk 0:00:31.4]} 22. axb3
{[%clk 0:02:05.5]} 22... a6 {[%clk 0:00:32.2]} 23. Nc4 {[%clk 0:01:58.8]} 23...
Rd8 {[%clk 0:00:26.6]} 24. Rfe1 {[%clk 0:01:57.7]} 24... Kf8 {[%clk 0:00:21.8]}
25. Ne3 {[%clk 0:01:56.2]} 25... Nxe3 {[%clk 0:00:19.3]} 26. fxe3 {[%clk
0:01:55.9]} 26... Ne4 {[%clk 0:00:20.2]} 27. Rad1 {[%clk 0:01:30.5]} 27... Nd6
{[%clk 0:00:18.5]} 28. e4 {[%clk 0:01:30]} 28... Be6 {[%clk 0:00:18.6]} 29. d5
{[%clk 0:01:30.4]} 29... cxd5 {[%clk 0:00:18.6]} 30. exd5 {[%clk 0:01:31.3]}
30... Bf5 {[%clk 0:00:18.6]} 31. Rc1 {[%clk 0:01:32.2]} 31... Nb5 {[%clk
0:00:17.6]} 32. b4 {[%clk 0:01:32.8]} 32... h5 {[%clk 0:00:15.5]} 33. Kf2 {[%clk
0:01:28.4]} 33... h4 {[%clk 0:00:15.8]} 34. Rc4 {[%clk 0:01:27.2]} 34... g5
{[%clk 0:00:15.4]} 35. Re5 {[%clk 0:01:27.2]} 35... Nd6 {[%clk 0:00:13.7]} 36.
Rc7 {[%clk 0:01:27.4]} 36... f6 {[%clk 0:00:05.7]} 37. Ree7 {[%clk 0:01:25]}
37... Re8 {[%clk 0:00:06.2]} 38. Rxe8+ {[%clk 0:01:02]} 38... Kxe8 {[%clk
0:00:07.1]} 39. Ke3 {[%clk 0:01:02.6]} 39... Kd8 {[%clk 0:00:07.5]} 40. Rg7
{[%clk 0:01:02.7]} 40... Ke8 {[%clk 0:00:07.7]} 41. Kd4 {[%clk 0:01:00.8]} 41...
b6 {[%clk 0:00:08.3]} 42. Be2 {[%clk 0:00:58.6]} 42... Bd7 {[%clk 0:00:04.9]}
43. Rh7 {[%clk 0:00:54.6]} 43... Nf5+ {[%clk 0:00:04.6]} 44. Kc3 {[%clk
0:00:54]} 44... Ne3 {[%clk 0:00:04.9]} 45. Bf3 {[%clk 0:00:52.9]} 45... Kd8
{[%clk 0:00:03.3]} 46. d6 {[%clk 0:00:52.4]} 46... Nf5 {[%clk 0:00:03.2]} 47.
Rxd7+ {[%clk 0:00:52]} 47... Kxd7 {[%clk 0:00:03.3]} 48. Bg4 {[%clk 0:00:52.9]}
48... Kxd6 {[%clk 0:00:03.3]} 49. Bxf5 {[%clk 0:00:53.6]} 49... a5 {[%clk
0:00:04.2]} 50. bxa5 {[%clk 0:00:53.7]} 50... bxa5 {[%clk 0:00:05.1]} 51. Kd4
{[%clk 0:00:54.3]} 51... a4 {[%clk 0:00:05.2]} 52. Bc2 {[%clk 0:00:54.4]} 52...
Ke6 {[%clk 0:00:05.6]} 53. Bxa4 {[%clk 0:00:54.4]} 53... f5 {[%clk 0:00:06.5]}
54. Bc2 {[%clk 0:00:53.7]} 54... g4 {[%clk 0:00:06.2]} 55. b4 {[%clk 0:00:53.6]}
55... Kf6 {[%clk 0:00:06.4]} 56. b5 {[%clk 0:00:53.8]} 56... Kg5 {[%clk
0:00:07.3]} 57. Bxf5 {[%clk 0:00:53.1]} 57... Kxf5 {[%clk 0:00:07.2]} 58. b6
{[%clk 0:00:53.8]} 58... Kf4 {[%clk 0:00:07.6]} 59. b7 {[%clk 0:00:54.2]} 59...
Kg3 {[%clk 0:00:08.5]} 60. b8=Q+ {[%clk 0:00:54.6]} 60... Kxg2 {[%clk
0:00:09.2]} 61. hxg4 {[%clk 0:00:55.4]} 61... h3 {[%clk 0:00:09.8]} 62. g5
{[%clk 0:00:55.9]} 62... h2 {[%clk 0:00:10.7]} 63. Qxh2+ {[%clk 0:00:55.8]}
63... Kxh2 {[%clk 0:00:11.6]} 64. g6 {[%clk 0:00:56.7]} 64... Kg3 {[%clk
0:00:12.4]} 65. g7 {[%clk 0:00:57.6]} 65... Kg4 {[%clk 0:00:13.3]} 66. g8=Q+
{[%clk 0:00:58.5]} 66... Kf5 {[%clk 0:00:14.2]} 67. Qf7+ {[%clk 0:00:58.4]}
67... Kg5 {[%clk 0:00:14.2]} 68. Ke4 {[%clk 0:00:58.9]} 68... Kg4 {[%clk
0:00:14.3]} 69. Qg6+ {[%clk 0:00:59.1]} 69... Kh3 {[%clk 0:00:15.2]} 70. Kf3
{[%clk 0:00:59.5]} 70... Kh2 {[%clk 0:00:16.1]} 71. Qg2# {[%clk 0:00:59.6]} 1-0

[Event "*** SCC Grand Prix: Titled Tuesday Blitz"]
[Site "Chess.com"]
[Date "2020.06.09"]
[Round "3"]
[White "mbachez"]
[Black "ZverevLev"]
[Result "1-0"]
[WhiteElo "2532"]
[BlackElo "2252"]
[TimeControl "180+1"]
[EndTime "9:29:28 PDT"]
[Termination "mbachez won by checkmate"]

1. e4 {[%clk 0:03:00.9]} 1... e5 {[%clk 0:02:55.1]} 2. Nf3 {[%clk 0:03:00.2]}
2... Nc6 {[%clk 0:02:50.2]} 3. Bb5 {[%clk 0:03:00.1]} 3... a6 {[%clk 0:02:46.6]}
4. Ba4 {[%clk 0:03:00.2]} 4... Nf6 {[%clk 0:02:43.4]} 5. d3 {[%clk 0:03:00.2]}
5... Bc5 {[%clk 0:02:40.4]} 6. c3 {[%clk 0:02:59.3]} 6... b5 {[%clk 0:02:32.9]}
7. Bb3 {[%clk 0:02:58.7]} 7... d6 {[%clk 0:02:32.2]} 8. h3 {[%clk 0:02:58.3]}
8... Bb6 {[%clk 0:02:30.4]} 9. a4 {[%clk 0:02:57.4]} 9... Bd7 {[%clk 0:02:27.1]}
10. O-O {[%clk 0:02:56.9]} 10... O-O {[%clk 0:02:25.1]} 11. Bg5 {[%clk
0:02:56.1]} 11... h6 {[%clk 0:02:23.3]} 12. axb5 {[%clk 0:02:50.6]} 12... hxg5
{[%clk 0:02:19.8]} 13. bxc6 {[%clk 0:02:50.3]} 13... Bxc6 {[%clk 0:02:20.3]} 14.
Nxg5 {[%clk 0:02:50]} 14... d5 {[%clk 0:02:10]} 15. Qf3 {[%clk 0:02:49.1]} 15...
Nxe4 {[%clk 0:01:55.4]} 16. Nxe4 {[%clk 0:02:11.2]} 16... dxe4 {[%clk
0:01:51.6]} 17. dxe4 {[%clk 0:02:10.8]} 17... Qh4 {[%clk 0:01:50.5]} 18. Nd2
{[%clk 0:01:53.2]} 18... a5 {[%clk 0:01:48.4]} 19. Rad1 {[%clk 0:01:52.5]} 19...
Rab8 {[%clk 0:01:44.6]} 20. Bd5 {[%clk 0:01:21.5]} 20... Bb5 {[%clk 0:01:28.3]}
21. c4 {[%clk 0:01:19.8]} 21... Bd7 {[%clk 0:01:18.9]} 22. c5 {[%clk 0:00:58.7]}
22... Bxc5 {[%clk 0:01:17.1]} 23. Nb3 {[%clk 0:00:58.8]} 23... Bd6 {[%clk
0:01:11.2]} 24. Rc1 {[%clk 0:00:57.4]} 24... a4 {[%clk 0:01:07.5]} 25. Nc5
{[%clk 0:00:56.5]} 25... Bxc5 {[%clk 0:01:06.4]} 26. Rxc5 {[%clk 0:00:56]} 26...
c6 {[%clk 0:00:57.3]} 27. Bxc6 {[%clk 0:00:54.2]} 27... Rb3 {[%clk 0:00:55.1]}
28. Qe2 {[%clk 0:00:42.6]} 28... Bxh3 {[%clk 0:00:51.4]} 29. Rfc1 {[%clk
0:00:22.4]} 29... Bxg2 {[%clk 0:00:36.7]} 30. Kxg2 {[%clk 0:00:22.2]} 30... Rh3
{[%clk 0:00:29.3]} 31. Rg1 {[%clk 0:00:22.1]} 31... Rh2+ {[%clk 0:00:19.6]} 32.
Kf1 {[%clk 0:00:22.3]} 32... Rd8 {[%clk 0:00:19.2]} 33. Bd5 {[%clk 0:00:21.9]}
33... Rb8 {[%clk 0:00:17.6]} 34. Rc2 {[%clk 0:00:21.2]} 34... a3 {[%clk
0:00:16.8]} 35. Qf3 {[%clk 0:00:21.4]} 35... Qe7 {[%clk 0:00:09.5]} 36. bxa3
{[%clk 0:00:20.4]} 36... Rb1+ {[%clk 0:00:08.1]} 37. Ke2 {[%clk 0:00:20.8]}
37... Rxg1 {[%clk 0:00:08.5]} 38. Rc8+ {[%clk 0:00:20.7]} 38... Kh7 {[%clk
0:00:08.2]} 39. Bxf7 {[%clk 0:00:20.1]} 39... Qb7 {[%clk 0:00:03.7]} 40. Qf5+
{[%clk 0:00:18.4]} 40... g6 {[%clk 0:00:03.7]} 41. Bg8+ {[%clk 0:00:18.8]} 41...
Kg7 {[%clk 0:00:02.8]} 42. Qf8+ {[%clk 0:00:18.5]} 42... Kh8 {[%clk 0:00:03]}
43. Bd5+ {[%clk 0:00:16.5]} 43... Kh7 {[%clk 0:00:02.9]} 44. Qh8# {[%clk
0:00:16.4]} 1-0

[Event "*** SCC Grand Prix: Titled Tuesday Blitz"]
[Site "Chess.com"]
[Date "2020.06.09"]
[Round "3"]
[White "OparinGrigoriy"]
[Black "stanyga"]
[Result "1-0"]
[WhiteElo "2907"]
[BlackElo "2658"]
[TimeControl "180+1"]
[EndTime "9:29:29 PDT"]
[Termination "OparinGrigoriy won on time"]

1. Nf3 {[%clk 0:03:00.9]} 1... d5 {[%clk 0:02:58.3]} 2. g3 {[%clk 0:03:01.1]}
2... Nf6 {[%clk 0:02:57]} 3. Bg2 {[%clk 0:03:01.7]} 3... g6 {[%clk 0:02:55.2]}
4. O-O {[%clk 0:03:00.4]} 4... Bg7 {[%clk 0:02:55.3]} 5. c4 {[%clk 0:03:01.1]}
5... dxc4 {[%clk 0:02:54.6]} 6. Na3 {[%clk 0:03:01.3]} 6... O-O {[%clk
0:02:51.4]} 7. Nxc4 {[%clk 0:03:01.5]} 7... c5 {[%clk 0:02:51.4]} 8. d4 {[%clk
0:03:00.1]} 8... Na6 {[%clk 0:02:40.8]} 9. dxc5 {[%clk 0:02:57.5]} 9... Nxc5
{[%clk 0:02:38.9]} 10. Be3 {[%clk 0:02:57.4]} 10... Nfe4 {[%clk 0:02:31.5]} 11.
Rc1 {[%clk 0:02:48]} 11... Be6 {[%clk 0:02:23.7]} 12. Bd4 {[%clk 0:01:46.9]}
12... Rc8 {[%clk 0:02:00.2]} 13. Bxg7 {[%clk 0:01:20.7]} 13... Qxd1 {[%clk
0:01:44.7]} 14. Rfxd1 {[%clk 0:01:21.6]} 14... Kxg7 {[%clk 0:01:45.2]} 15. Nd4
{[%clk 0:01:12.6]} 15... Bxc4 {[%clk 0:01:21.2]} 16. Rxc4 {[%clk 0:01:13.5]}
16... Nd6 {[%clk 0:01:12.1]} 17. Rcc1 {[%clk 0:01:10.5]} 17... Rfd8 {[%clk
0:01:05.3]} 18. Bh3 {[%clk 0:01:02.8]} 18... Rc7 {[%clk 0:00:30.2]} 19. Nb5
{[%clk 0:00:53.2]} 19... Rc6 {[%clk 0:00:26.4]} 20. b4 {[%clk 0:00:47.6]} 20...
Na6 {[%clk 0:00:19.7]} 21. Nxa7 {[%clk 0:00:16.2]} 21... Rxc1 {[%clk 0:00:19.3]}
22. Rxc1 {[%clk 0:00:17.1]} 22... Ra8 {[%clk 0:00:16.2]} 23. b5 {[%clk
0:00:16.4]} 23... Rxa7 {[%clk 0:00:15.7]} 24. bxa6 {[%clk 0:00:16.7]} 24... Rxa6
{[%clk 0:00:16.1]} 25. Rc2 {[%clk 0:00:16.2]} 25... Kf6 {[%clk 0:00:13]} 26. f4
{[%clk 0:00:15.7]} 26... b5 {[%clk 0:00:10.2]} 27. Bg2 {[%clk 0:00:15.1]} 27...
Nc4 {[%clk 0:00:08.2]} 28. Kf2 {[%clk 0:00:13.8]} 28... Ra3 {[%clk 0:00:06.2]}
29. Bc6 {[%clk 0:00:09.3]} 29... Nd6 {[%clk 0:00:06.1]} 30. Bd5 {[%clk 0:00:08]}
30... e5 {[%clk 0:00:05.6]} 31. e3 {[%clk 0:00:07.5]} 31... exf4 {[%clk
0:00:05.2]} 32. gxf4 {[%clk 0:00:07.2]} 32... Nf5 {[%clk 0:00:04.6]} 33. Bb3
{[%clk 0:00:03.9]} 33... Ra6 {[%clk 0:00:03.9]} 34. Rc5 {[%clk 0:00:04.3]} 34...
Rb6 {[%clk 0:00:04.1]} 35. e4 {[%clk 0:00:04]} 35... Nd4 {[%clk 0:00:04.3]} 36.
e5+ {[%clk 0:00:04.6]} 36... Kf5 {[%clk 0:00:02.8]} 37. e6+ {[%clk 0:00:04.9]}
37... Kf6 {[%clk 0:00:02.4]} 38. exf7 {[%clk 0:00:05.5]} 38... Kg7 {[%clk
0:00:02.8]} 39. Rc8 {[%clk 0:00:05.8]} 39... Rf6 {[%clk 0:00:01.7]} 40. Rg8+
{[%clk 0:00:06.2]} 40... Kh6 {[%clk 0:00:01.2]} 41. f8=Q+ {[%clk 0:00:07.1]} 1-0

[Event "*** SCC Grand Prix: Titled Tuesday Blitz"]
[Site "Chess.com"]
[Date "2020.06.09"]
[Round "3"]
[White "Kildepiotr"]
[Black "XiaoKangZhong"]
[Result "1-0"]
[WhiteElo "2595"]
[BlackElo "2395"]
[TimeControl "180+1"]
[EndTime "9:29:30 PDT"]
[Termination "Kildepiotr won by checkmate"]

1. Nf3 {[%clk 0:03:00.9]} 1... d5 {[%clk 0:02:58.3]} 2. g3 {[%clk 0:03:01.1]}
2... Nf6 {[%clk 0:02:57.3]} 3. Bg2 {[%clk 0:03:01.3]} 3... h6 {[%clk 0:02:57.7]}
4. O-O {[%clk 0:03:01.3]} 4... Bf5 {[%clk 0:02:58.3]} 5. d3 {[%clk 0:03:01.2]}
5... e6 {[%clk 0:02:57.8]} 6. Nbd2 {[%clk 0:03:01.7]} 6... Be7 {[%clk
0:02:55.9]} 7. Qe1 {[%clk 0:03:02]} 7... O-O {[%clk 0:02:53]} 8. e4 {[%clk
0:03:02]} 8... Bh7 {[%clk 0:02:53.1]} 9. Qe2 {[%clk 0:03:01.7]} 9... a5 {[%clk
0:02:48.3]} 10. a4 {[%clk 0:03:01]} 10... c6 {[%clk 0:02:44.8]} 11. b3 {[%clk
0:03:00.3]} 11... Na6 {[%clk 0:02:43.6]} 12. Bb2 {[%clk 0:02:59.9]} 12... Nc7
{[%clk 0:02:43.7]} 13. Ne5 {[%clk 0:02:53.1]} 13... Nd7 {[%clk 0:02:20.2]} 14.
f4 {[%clk 0:02:52.4]} 14... Nxe5 {[%clk 0:02:19.8]} 15. Bxe5 {[%clk 0:02:46.9]}
15... Bf6 {[%clk 0:02:17.6]} 16. Bxf6 {[%clk 0:02:44.3]} 16... Qxf6 {[%clk
0:02:17.5]} 17. e5 {[%clk 0:02:44.5]} 17... Qe7 {[%clk 0:02:15.3]} 18. Nf3
{[%clk 0:02:41.3]} 18... c5 {[%clk 0:02:13.8]} 19. c4 {[%clk 0:02:31.1]} 19...
Rad8 {[%clk 0:02:05]} 20. Rfd1 {[%clk 0:02:25]} 20... b6 {[%clk 0:02:03.8]} 21.
Rac1 {[%clk 0:02:12.2]} 21... Na6 {[%clk 0:02:02.8]} 22. d4 {[%clk 0:02:10]}
22... Nb4 {[%clk 0:01:50.8]} 23. Rd2 {[%clk 0:01:57.2]} 23... dxc4 {[%clk
0:01:32.4]} 24. Rxc4 {[%clk 0:01:51.1]} 24... cxd4 {[%clk 0:01:31.8]} 25. Nxd4
{[%clk 0:01:44.8]} 25... Rc8 {[%clk 0:01:26.9]} 26. Nb5 {[%clk 0:01:39.3]} 26...
Rc5 {[%clk 0:00:56.8]} 27. Nd6 {[%clk 0:01:35.9]} 27... Qc7 {[%clk 0:00:56.8]}
28. Qe3 {[%clk 0:01:25.9]} 28... Bg6 {[%clk 0:00:49.4]} 29. Rxc5 {[%clk
0:01:25.2]} 29... bxc5 {[%clk 0:00:49.5]} 30. Nc4 {[%clk 0:01:17.9]} 30... Rd8
{[%clk 0:00:45.7]} 31. Rd6 {[%clk 0:01:04.3]} 31... Bc2 {[%clk 0:00:27.3]} 32.
Be4 {[%clk 0:00:52.7]} 32... Nd5 {[%clk 0:00:21.2]} 33. Qf3 {[%clk 0:00:31.7]}
33... Bxe4 {[%clk 0:00:21.2]} 34. Qxe4 {[%clk 0:00:31.7]} 34... Rb8 {[%clk
0:00:21.9]} 35. f5 {[%clk 0:00:23.8]} 35... Rxb3 {[%clk 0:00:18.7]} 36. fxe6
{[%clk 0:00:23.8]} 36... fxe6 {[%clk 0:00:19.6]} 37. Rxe6 {[%clk 0:00:19.8]}
37... Ne7 {[%clk 0:00:19.4]} 38. Nd6 {[%clk 0:00:16.3]} 38... Rb4 {[%clk
0:00:14]} 39. Qa8+ {[%clk 0:00:15.5]} 39... Rb8 {[%clk 0:00:14]} 40. Qf3 {[%clk
0:00:15.3]} 40... Rb1+ {[%clk 0:00:13.6]} 41. Kg2 {[%clk 0:00:14.9]} 41... Rb2+
{[%clk 0:00:09.9]} 42. Kh3 {[%clk 0:00:15.2]} 42... Ng6 {[%clk 0:00:10.6]} 43.
Re8+ {[%clk 0:00:13.1]} 43... Kh7 {[%clk 0:00:10.4]} 44. Qf5 {[%clk 0:00:10.6]}
44... Re2 {[%clk 0:00:07.1]} 45. Re6 {[%clk 0:00:09.9]} 45... Kg8 {[%clk
0:00:03.4]} 46. Qxg6 {[%clk 0:00:09.2]} 46... Rf2 {[%clk 0:00:03.8]} 47. Re8+
{[%clk 0:00:08.9]} 47... Rf8 {[%clk 0:00:04.5]} 48. Qe6+ {[%clk 0:00:08.7]}
48... Kh7 {[%clk 0:00:03.9]} 49. Rxf8 {[%clk 0:00:09.1]} 49... h5 {[%clk
0:00:04.3]} 50. Qf5+ {[%clk 0:00:09]} 50... Kh6 {[%clk 0:00:03.8]} 51. Rh8#
{[%clk 0:00:08.5]} 1-0